Workbook

Sheet Instructions
A1: ಮುಖ್ಯಾಂಶಗಳು
A3: 1. ಬಳಕೆದಾರರು ತಮ್ಮ ಕಂಪ್ಯೂಟರ್ ದಲ್ಲಿ Office 2007 ಇರುವದನ್ನು ಖಾತ್ರಿಪಡಿಸಿಕೊಳ್ಳಿ.
A4: 2. ಡಿಟೇಲ್ಸನಲ್ಲಿ ಮಾಹಿತಿ ತುಂಬಿದರೆ, ಪಾರ್ಮ 16 ಮತ್ತು ಪಾರ್ಮ 16A ಸಿದ್ದವಾಗುತ್ತದೆ.
A5: 4. ಕಾಲಮಿತಿ ಬಡ್ತಿ ಅಂದರೆ 10/15/20 ವರ್ಷದ ಬಡ್ತಿಯಿದ್ದಲ್ಲಿ, ಡಿಟೇಲ್ಸನಲ್ಲಿ ಕ್ರ.ಸಂ 13 ರಲ್ಲಿ ತುಂಬಿರಿ. ಕ್ರ.ಸಂ. 14 ರಲ್ಲಿ ಜಾರಿಯಾಗುವ
A6: ದಿನಾಂಕ ಮತ್ತು ತಿಂಗಳು ನಮೂದಿಸಿರಿ.
A7: 5. ವರ್ಷದ ಮದ್ಯದಲ್ಲಿ ವರ್ಗಾವಣೆಯಾದವರಿಗೆ ಅನೂಕೂಲವಾಗಲು ಎಚ್.ಆರ್.ಎ ಮಾಹಿತಿ ತಿಂಗಳುವಾರು ಎ.ಬಿ.ಸಿ. ಗ್ರೇಡ್ ಆಯ್ಕೆಮಾಡಿರಿ.
A8: 6. ವಿಕಲಚೇತನರಿಗೆ ವಿಶೇಷವಾಗಿ ಇದನ್ನು ರಚಿಸಲಾಗಿದೆ. ಅಂದರೆ ವಿಕಲಚೇತನ Yes/ No ಎಂದು ಕ್ರ.ಸಂ. 16 & 21 ತುಂಬಿದರೆ ಅವರ ಸಂಚಾರಿ ಭತ್ಯೆ
A9: ಲೆಕ್ಕಾಚಾರ ತಾನೆ ಮಾಡಿ ವೃತ್ತಿ ತೆರಿಗೆ ವಿನಾಯ್ತಿ ತೋರಿಸಿ, 80U, 10(14) ರಲ್ಲಿ ತೆರಿಗೆ ವಿನಾಯ್ತಿ ತೋರಿಸುತ್ತದೆ.
A10: 7. ಟ್ಯಾಕ್ಸೆಬಲ್ ಆದಾಯ 5 ಲಕ್ಷದೊಳಗೆ ಇದ್ದರೆ 0% ತೆರಿಗೆ, 5 ಲಕ್ಷದಿಂದ 10 ಲಕ್ಷದೊಳಗೆ ಇದ್ದರೆ 20% ಮತ್ತು
A11: 10 ಲಕ್ಷದಮೇಲಿದ್ದರೆ 30% ಲೆಕ್ಕಾಚಾರ ತಾನೆ ಮಾಡಿ ತೋರಿಸುತ್ತದೆ.
A12: 8. ಟ್ಯಾಕ್ಸೆಬಲ್ ಆದಾಯ 3.5 ಲಕ್ಷದೊಳಗೆ ಇದ್ದರೆ, U/S 87A ಅಡಿಯಲ್ಲಿ ರೂ 2,500 ವಿನಾಯ್ತಿ ಲೆಕ್ಕಾಚಾರ ತಾನೆ ನಿರ್ವಹಿಸುತ್ತದೆ.
A13: 9. ಉಳಿತಾಯ 1,50,000 ಮೀರಿದ್ದರೆ, 1,50,000 ಮಾತ್ರ ಪರಿಗಣಿಸುವ ವ್ಯವಸ್ಥೆ ಇದೆ.
A14: 10. ಖಾಸಗಿ ಅನುದಾನಿತ ಶಾಲಾ ಶಿಕ್ಷಕರಿಗೆ ಜಿ.ಐ.ಎಸ್. ಇರುವದಿಲ್ಲ. ಕ್ರ.ಸಂ. 18 ರಲ್ಲಿ Yes/ No ತುಂಬಿದರೆ ಸಾಕು ಲೆಕ್ಕಿಸುತ್ತದೆ.

Sheet Details
A1: Employees Payment Details for I T Calculation | K1: =C11 -> 62600 | N1: 200 | O1: 250 | P1: 300 | Q1: 350 | R1: 400 | S1: 450 | T1: 500 | U1: 600 | V1: 700 | W1: 800 | X1: 900 | Y1: 1050 | Z1: 1200 | AA1: 1350 | AB1: 1500 | AC1: 1700 | AE1: 300 | AI1: 350 | AM1: 400 | AQ1: 450 | AU1: 500 | AY1: 600 | BE1: 700 | BK1: 800 | BQ1: 900 | BW1: 1050 | CC1: 1200 | CI1: 1350 | CP1: 1500 | CT1: 1700
A2: 1. Name of Employee | C2: ಶ್ರೀನಿವಾಸ ಹೆಚ್.ಟಿ. | K2: =K1 -> 62600 | L2: =IF(D18="Mar",K1+K14,IF(D18="Apl",K1,IF(D18="May",K1,IF(D18="Jun",K1,IF(D18="Jul",K1,IF(D18="Aug",K1,IF(D18="Sep",K1,IF(D18="Oct",K1,IF(D18="Nov",K1,IF(D18="Dec",K1,IF(D18="Jan",K1,IF(D18="Feb",K1)))))))))))) -> 62600 | M2: =IF(K2<18600,O3,IF(K2<20400,P3,IF(K2<22400,Q3,IF(K2<24600,R3,IF(K2<27000,S3,IF(K2<29600,T3,IF(K2<32600,U3,IF(K2<36000,V3,IF(K2<39800,W3,IF(K2<46400,X3,IF(K2<51400,Y3,IF(K2<62600,Z3,IF(K2<72500,AA3,IF(K2<83900,AB3,IF(K2<97100,AC3,IF(K2<112100,AD3,IF(K2<128900,AE3,IF(K2<150600,AF3,)))))))))))))))))) -> 1650 | N2: 17000-400-18600-450-20400-500-22400-550-24600-600-27000-650--28950 | O2: 9600 | P2: 9800 | Q2: 10000 | R2: =Q2+200 -> 10200 | S2: =R2+200 -> 10400 | T2: 10600 | U2: 10800 | V2: 11000 | W2: =V2+200 -> 11200 | X2: 11400 | Y2: 11600 | Z2: 11800 | AA2: =Z2+200 -> 12000 | AB2: =AA2+250 -> 12250 | AC2: =AB2+250 -> 12500 | AD2: 12750 | AE2: 13000 | AF2: =AE2+300 -> 13300 | AG2: =AF2+300 -> 13600 | AH2: 13900 | AI2: 14200 | AJ2: =AI2+350 -> 14550 | AK2: =AJ2+350 -> 14900 | AL2: 15250 | AM2: 15600 | AN2: =AM2+400 -> 16000 | AO2: =AN2+400 -> 16400 | AP2: 16800 | AQ2: 17200 | AR2: =AQ2+450 -> 17650 | AS2: =AR2+450 -> 18100 | AT2: 18550 | AU2: 19000 | AV2: =AU2+500 -> 19500 | AW2: =AV2+500 -> 20000 | AX2: 20500 | AY2: =AX2+500 -> 21000 | AZ2: =AY2+600 -> 21600 | BA2: =AZ2+600 -> 22200 | BB2: 22800 | BC2: 23400 | BD2: 24000 | BE2: 24600 | BF2: =BE2+700 -> 25300 | BG2: =BF2+700 -> 26000 | BH2: =BG2+700 -> 26700 | BI2: =BH2+700 -> 27400 | BJ2: 28100 | BK2: 28800 | BL2: =BK2+800 -> 29600 | BM2: =BL2+800 -> 30400 | BN2: 31200 | BO2: 32000 | BP2: 32800 | BQ2: 33600 | BR2: =BQ2+900 -> 34500 | BS2: =BR2+900 -> 35400 | BT2: =BS2+900 -> 36300 | BU2: =BT2+900 -> 37200 | BV2: 38100 | BW2: 39000 | BX2: =BW2+1050 -> 40050 | BY2: 41100 | BZ2: 42150 | CA2: 43200 | CB2: 44250 | CC2: 45300 | CD2: =CC2+1200 -> 46500 | CE2: =CD2+1200 -> 47700 | CF2: 48900 | CG2: 50100 | CH2: 51300 | CI2: 52500 | CJ2: =CI2+1350 -> 53850 | CK2: =CJ2+1350 -> 55200 | CL2: 56550 | CM2: 57900 | CN2: 59250 | CO2: 60600 | CP2: 62100 | CQ2: 63600 | CR2: 66600 | CS2: 68100 | CT2: 69600 | CU2: 71300 | CV2: 73000
A3: 2. Designation, | C3: ದೈಹಿಕ ಶಿಕ್ಷಣ ಶಿಕ್ಷಕರು(ಗ್ರೇಡ್-1) | K3: =K2 -> 62600 | L3: =IF(D18="Mar",K2+L15,IF(D18="Apl",K2+K14,IF(D18="May",K2,IF(D18="Jun",K2,IF(D18="Jul",K2,IF(D18="Aug",K2,IF(D18="Sep",K2,IF(D18="Oct",K2,IF(D18="Nov",K2,IF(D18="Dec",K2,IF(D18="Jan",K2,IF(D18="Feb",K2)))))))))))) -> 62600 | M3: =IF(K3<18600,O3,IF(K3<20400,P3,IF(K3<22400,Q3,IF(K3<24600,R3,IF(K3<27000,S3,IF(K3<29600,T3,IF(K3<32600,U3,IF(K3<36000,V3,IF(K3<39800,W3,IF(K3<46400,X3,IF(K3<51400,Y3,IF(K3<62600,Z3,IF(K3<72500,AA3,IF(K3<83900,AB3,IF(K3<97100,AC3,IF(K3<112100,AD3,IF(K3<128900,AE3,IF(K3<150600,AF3,)))))))))))))))))) -> 1650 | N3: 18600-450-20400-500-22400-550-24600-600-27000-650--29600-750-32600 | O3: 400 | P3: 450 | Q3: 500 | R3: 550 | S3: 600 | T3: 650 | U3: 750 | V3: 850 | W3: 950 | X3: 1100 | Y3: 1250 | Z3: 1450 | AA3: 1650 | AB3: 1900 | AC3: 2200 | AD3: 2500 | AE3: 2800 | AF3: 3100
A4: 3. PAN Number/ KGID No. | C4: AXTPS4023M | E4: KGID No. | F4: 1260321 | H4: Aadhar | I4: 497378753229 | K4: =K3 -> 62600 | L4: =IF(D18="Mar",K3+L15,IF(D18="Apl",K3+L15,IF(D18="May",K3+K14,IF(D18="Jun",K3,IF(D18="Jul",K3,IF(D18="Aug",K3,IF(D18="Sep",K3,IF(D18="Oct",K3,IF(D18="Nov",K3,IF(D18="Dec",K3,IF(D18="Jan",K3,IF(D18="Feb",K3)))))))))))) -> 62600 | M4: =IF(K4<18600,O3,IF(K4<20400,P3,IF(K4<22400,Q3,IF(K4<24600,R3,IF(K4<27000,S3,IF(K4<29600,T3,IF(K4<32600,U3,IF(K4<36000,V3,IF(K4<39800,W3,IF(K4<46400,X3,IF(K4<51400,Y3,IF(K4<62600,Z3,IF(K4<72500,AA3,IF(K4<83900,AB3,IF(K4<97100,AC3,IF(K4<112100,AD3,IF(K4<128900,AE3,IF(K4<150600,AF3,)))))))))))))))))) -> 1650 | N4: 19950-450-20400-500-22400-550-24600-600-27000-650-29600-750-32600-850-36000-950-37900 | O4: 17000 | P4: =O4+400 -> 17400 | Q4: =P4+400 -> 17800 | R4: 18200 | S4: 18600 | T4: =S4+450 -> 19050 | U4: =T4+450 -> 19500 | V4: 19950 | W4: =V4+450 -> 20400 | X4: =W4+500 -> 20900 | Y4: =X4+500 -> 21400 | Z4: 21900 | AA4: 22400 | AB4: =AA4+550 -> 22950 | AC4: =AB4+550 -> 23500 | AD4: 24050 | AE4: 24600 | AF4: =AE4+600 -> 25200 | AG4: =AF4+600 -> 25800 | AH4: 26400 | AI4: 27000 | AJ4: =AI4+650 -> 27650 | AK4: =AJ4+650 -> 28300 | AL4: 28950 | AM4: 29600 | AN4: =AM4+750 -> 30350 | AO4: =AN4+750 -> 31100 | AP4: 31850 | AQ4: 32600 | AR4: =AQ4+850 -> 33450 | AS4: =AR4+850 -> 34300 | AT4: 35150 | AU4: 36000 | AV4: =AU4+950 -> 36950 | AW4: =AV4+950 -> 37900 | AX4: 38850 | AY4: 39800 | AZ4: =AY4+1100 -> 40900 | BA4: =AZ4+1100 -> 42000 | BB4: 43100 | BC4: 44200 | BD4: 45300 | BE4: 46400 | BF4: =BE4+1250 -> 47650 | BG4: =BF4+1250 -> 48900 | BH4: 50150 | BI4: 51400 | BJ4: 52650 | BK4: 53900 | BL4: =BK4+1450 -> 55350 | BM4: =BL4+1450 -> 56800 | BN4: 58250 | BO4: 59700 | BP4: 61150 | BQ4: 62600 | BR4: =BQ4+1650 -> 64250 | BS4: =BR4+1650 -> 65900 | BT4: 67550 | BU4: 69200 | BV4: 70850 | BW4: 72500 | BX4: =BW4+1900 -> 74400 | BY4: =BX4+1900 -> 76300 | BZ4: 78200 | CA4: 80100 | CB4: 82000 | CC4: 83900 | CD4: =CC4+2200 -> 86100 | CE4: =CD4+2200 -> 88300 | CF4: 90500 | CG4: 92700 | CH4: 94900 | CI4: 97100 | CJ4: =CI4+2500 -> 99600 | CK4: =CJ4+2500 -> 102100 | CL4: 104600 | CM4: 107100 | CN4: 109600 | CO4: 112100 | CP4: =CO4+2800 -> 114900 | CQ4: =CP4+2800 -> 117700 | CR4: 120500 | CS4: 123300 | CT4: 126100 | CU4: 128900 | CV4: =CU4+3100 -> 132000 | CW4: =CV4+3100 -> 135100 | CX4: 138200 | CY4: 141300 | CZ4: 144400 | DA4: 147500 | DB4: 150600
A5: 4. Residential Address. | C5: 2718 E BLOCK, KANAKADASANAGARA MYSORE | K5: =IF(C14="Jan",C11,IF(C14="Jul",C11+C15)) -> 62600 | L5: =IF(D18="Mar",K4+L15,IF(D18="Apl",K4+L15,IF(D18="May",K4+L15,IF(D18="Jun",K4+K14,IF(D18="Jul",K4,IF(D18="Aug",K4,IF(D18="Sep",K4,IF(D18="Oct",K4,IF(D18="Nov",K4,IF(D18="Dec",K4,IF(D18="Jan",K4,IF(D18="Feb",K4)))))))))))) -> 62600 | M5: =IF(K5<18600,O3,IF(K5<20400,P3,IF(K5<22400,Q3,IF(K5<24600,R3,IF(K5<27000,S3,IF(K5<29600,T3,IF(K5<32600,U3,IF(K5<36000,V3,IF(K5<39800,W3,IF(K5<46400,X3,IF(K5<51400,Y3,IF(K5<62600,Z3,IF(K5<72500,AA3,IF(K5<83900,AB3,IF(K5<97100,AC3,IF(K5<112100,AD3,IF(K5<128900,AE3,IF(K5<150600,AF3,)))))))))))))))))) -> 1650 | N5: 21400-500-22400-550-24600-600-27000-650-29600-750-32600-850-36000-950-39800-1100-42000
A6: 5. Office Address. | C6: GJC(HS) KARIMUDDANAHALLI, HUNSUR TQ. | K6: =K5 -> 62600 | L6: =IF(D18="Mar",K5+L15,IF(D18="Apl",K5+L15,IF(D18="May",K5+L15,IF(D18="Jun",K5+L15,IF(D18="Jul",K5+K14,IF(D18="Aug",K5,IF(D18="Sep",K5,IF(D18="Oct",K5,IF(D18="Nov",K5,IF(D18="Dec",K5,IF(D18="Jan",K5,IF(D18="Feb",K5)))))))))))) -> 62600 | M6: =IF(K6<18600,O3,IF(K6<20400,P3,IF(K6<22400,Q3,IF(K6<24600,R3,IF(K6<27000,S3,IF(K6<29600,T3,IF(K6<32600,U3,IF(K6<36000,V3,IF(K6<39800,W3,IF(K6<46400,X3,IF(K6<51400,Y3,IF(K6<62600,Z3,IF(K6<72500,AA3,IF(K6<83900,AB3,IF(K6<97100,AC3,IF(K6<112100,AD3,IF(K6<128900,AE3,IF(K6<150600,AF3,)))))))))))))))))) -> 1650 | N6: 23500-550-22400-550-24600-600-27000-650-29600-750-32600-850-36000-950-39800-1100-46400-1250-47650
A7: 6. Name of Controlling Authority. | C7: NANJUSNDAIAH | K7: =K6 -> 62600 | L7: =IF(D18="Mar",K6+L15,IF(D18="Apl",K6+L15,IF(D18="May",K6+L15,IF(D18="Jun",K6+L15,IF(D18="Jul",K6+L15,IF(D18="Aug",K6+K14,IF(D18="Sep",K6,IF(D18="Oct",K6,IF(D18="Nov",K6,IF(D18="Dec",K6,IF(D18="Jan",K6,IF(D18="Feb",K6)))))))))))) -> 62600 | M7: =IF(K7<18600,O3,IF(K7<20400,P3,IF(K7<22400,Q3,IF(K7<24600,R3,IF(K7<27000,S3,IF(K7<29600,T3,IF(K7<32600,U3,IF(K7<36000,V3,IF(K7<39800,W3,IF(K7<46400,X3,IF(K7<51400,Y3,IF(K7<62600,Z3,IF(K7<72500,AA3,IF(K7<83900,AB3,IF(K7<97100,AC3,IF(K7<112100,AD3,IF(K7<128900,AE3,IF(K7<150600,AF3,)))))))))))))))))) -> 1650 | N7: 25800-600-27000-650-29600-750-32600-850-36000-950-39800-1100-46400-1250-51400
A8: 7. Designation of Controlling Authority. | C8: SENIOR ASSISTANT TEACHER | K8: =K7 -> 62600 | L8: =IF(D18="Mar",K7+L15,IF(D18="Apl",K7+L15,IF(D18="May",K7+L15,IF(D18="Jun",K7+L15,IF(D18="Jul",K7+L15,IF(D18="Aug",K7+L15,IF(D18="Sep",K8+K14,IF(D18="Oct",K7,IF(D18="Nov",K7,IF(D18="Dec",K7,IF(D18="Jan",K7,IF(D18="Feb",K7)))))))))))) -> 62600 | M8: =IF(K8<18600,O3,IF(K8<20400,P3,IF(K8<22400,Q3,IF(K8<24600,R3,IF(K8<27000,S3,IF(K8<29600,T3,IF(K8<32600,U3,IF(K8<36000,V3,IF(K8<39800,W3,IF(K8<46400,X3,IF(K8<51400,Y3,IF(K8<62600,Z3,IF(K8<72500,AA3,IF(K8<83900,AB3,IF(K88<97100,AC3,IF(K8<112100,AD3,IF(K8<128900,AE3,IF(K8<150600,AF3,)))))))))))))))))) -> 1650 | N8: 27650-650-29600-750-32600-850-36000-950-39800-1100-46400-1250-52650
A9: 8. TAN number. | K9: =K8 -> 62600 | L9: =IF(D18="Mar",K8+L15,IF(D18="Apl",K8+L15,IF(D18="May",K8+L15,IF(D18="Jun",K8+L15,IF(D18="Jul",K8+L15,IF(D18="Aug",K8+L15,IF(D18="Sep",K8+L15,IF(D18="Oct",K8+K14,IF(D18="Nov",K8,IF(D18="Dec",K8,IF(D18="Jan",K8,IF(D18="Feb",K8)))))))))))) -> 62600 | M9: =IF(K9<18600,O3,IF(K9<20400,P3,IF(K9<22400,Q3,IF(K9<24600,R3,IF(K9<27000,S3,IF(K9<29600,T3,IF(K9<32600,U3,IF(K9<36000,V3,IF(K9<39800,W3,IF(K9<46400,X3,IF(K9<51400,Y3,IF(K9<62600,Z3,IF(K9<72500,AA3,IF(K9<83900,AB3,IF(K9<97100,AC3,IF(K9<112100,AD3,IF(K9<128900,AE3,IF(K9<150600,AF3,)))))))))))))))))) -> 1650 | N9: 30350-750-32600-850-36000-950-39800-1100-46400-1250-53900-1450-58250
A10: 9. Scale of Employee. | C10: 43100-1100-46400-1250-53900-1450-62600-1650-72500-1900-83900 | K10: =K9 -> 62600 | L10: =IF(D18="Mar",K9+L15,IF(D18="Apl",K9+L15,IF(D18="May",K9+L15,IF(D18="Jun",K9+L15,IF(D18="Jul",K9+L15,IF(D18="Aug",K9+L15,IF(D18="Sep",K9+L15,IF(D18="Oct",K9+L15,IF(D18="Nov",K9+K14,IF(D18="Dec",K9,IF(D18="Jan",K9,IF(D18="Feb",K9)))))))))))) -> 62600 | M10: =IF(K10<18600,O3,IF(K10<20400,P3,IF(K10<22400,Q3,IF(K10<24600,R3,IF(K10<27000,S3,IF(K10<29600,T3,IF(K10<32600,U3,IF(K10<36000,V3,IF(K10<39800,W3,IF(K10<46400,X3,IF(K10<51400,Y3,IF(K10<62600,Z3,IF(K10<72500,AA3,IF(K10<83900,AB3,IF(K10<97100,AC3,IF(K10<112100,AD3,IF(K10<128900,AE3,IF(K10<150600,AF3,)))))))))))))))))) -> 1650 | N10: 33450-850-36000-950-39800-1100-46400-1250-53900-1450-62600
A11: 10. Your Basic Pay as on March. | C11: 62600 | E11: Month | F11: G P F | G11: K G I D | H11: L I C | I11: I T | J11: HRA | K11: =IF(C14="Jan",C11+C15,IF(C14="Jul",K10)) -> 64250 | L11: =IF(D18="Mar",K10+L15,IF(D18="Apl",K10+L15,IF(D18="May",K10+L15,IF(D18="Jun",K10+L15,IF(D18="Jul",K10+L15,IF(D18="Aug",K10+L15,IF(D18="Sep",K10+L15,IF(D18="Oct",K10+L15,IF(D18="Nov",K10+L15,IF(D18="Dec",K10+K14,IF(D18="Jan",K10,IF(D18="Feb",K10)))))))))))) -> 62600 | M11: =IF(K11<18600,O3,IF(K11<20400,P3,IF(K11<22400,Q3,IF(K11<24600,R3,IF(K11<27000,S3,IF(K11<29600,T3,IF(K11<32600,U3,IF(K11<36000,V3,IF(K11<39800,W3,IF(K11<46400,X3,IF(K11<51400,Y3,IF(K11<62600,Z3,IF(K11<72500,AA3,IF(K11<83900,AB3,IF(K11<97100,AC3,IF(K11<112100,AD3,IF(K11<128900,AE3,IF(K11<150600,AF3,)))))))))))))))))) -> 1650 | N11: 36000-950-39800-1100-46400-1250-53900-1450-62600-1650-67550
A12: 11.Whether you claiming Uniforn Allowance | C12: No | E12: Mar | F12: 2,000 | G12: 2,000 | H12: 1,272 | I12: 0 | J12: C | K12: =K11 -> 64250 | L12: =IF(D18="Mar",K11+L15,IF(D18="Apl",K11+L15,IF(D18="May",K11+L15,IF(D18="Jun",K11+L15,IF(D18="Jul",K11+L15,IF(D18="Aug",K11+L15,IF(D18="Sep",K11+L15,IF(D18="Oct",K11+L15,IF(D18="Nov",K11+L15,IF(D18="Dec",K11+L15,IF(D18="Jan",K11+K14,IF(D18="Feb",K11)))))))))))) -> 64250 | M12: =IF(K12<18600,O3,IF(K12<20400,P3,IF(K12<22400,Q3,IF(K12<24600,R3,IF(K12<27000,S3,IF(K12<29600,T3,IF(K12<32600,U3,IF(K12<36000,V3,IF(K12<39800,W3,IF(K12<46400,X3,IF(K12<51400,Y3,IF(K12<62600,Z3,IF(K12<72500,AA3,IF(K12<83900,AB3,IF(K12<97100,AC3,IF(K12<112100,AD3,IF(K12<128900,AE3,IF(K12<150600,AF3,)))))))))))))))))) -> 1650 | N12: 37900-950-39800-1100-46400-1250-53900-1450-62600-1650-70850
A13: 12. Type of Increment / Additional Increment | C13: Regular | E13: Apl | F13: 2,000 | G13: 2,000 | H13: 1,272 | I13: 0 | J13: C | K13: =IF(C14="Mar",C11,IF(C14="Mar",C11+C15,IF(C14="Apl",C11+C15,IF(C14="May",C11+C15,IF(C14="Jun",C11+C15,IF(C14="Jul",C11+C15,IF(C14="Aug",C11+C15,IF(C14="Sep",C11+C15,IF(C14="Oct",C11+C15,IF(C14="Nov",C11+C15,IF(C14="Dec",C11+C15,IF(C14="Jan",C11+C15,IF(C14="Feb",C11+C15))))))))))))) -> 64250 | L13: =IF(D18="Mar",K12+L15,IF(D18="Apl",K12+L15,IF(D18="May",K12+L15,IF(D18="Jun",K12+L15,IF(D18="Jul",K12+L15,IF(D18="Aug",K12+L15,IF(D18="Sep",K12+L15,IF(D18="Oct",K12+L15,IF(D18="Nov",K12+L15,IF(D18="Dec",K12+L15,IF(D18="Jan",K12+L15,IF(D18="Feb",K12+K14)))))))))))) -> 64250 | M13: =IF(K13<18600,O3,IF(K13<20400,P3,IF(K13<22400,Q3,IF(K13<24600,R3,IF(K13<27000,S3,IF(K13<29600,T3,IF(K13<32600,U3,IF(K13<36000,V3,IF(K13<39800,W3,IF(K13<46400,X3,IF(K13<51400,Y3,IF(K13<62600,Z3,IF(K13<72500,AA3,IF(K13<83900,AB3,IF(K13<97100,AC3,IF(K13<112100,AD3,IF(K13<128900,AE3,IF(K13<150600,AF3,)))))))))))))))))) -> 1650 | N13: 40900-1100-46400-1250-53900-1450-62600-1650-72500-1900-78200
A14: 13. Regular Increment Month | C14: Jan | E14: May | F14: 2,000 | G14: 2,000 | H14: 1,272 | I14: 0 | J14: C | K14: =ROUND(L15/30*(30-C18+1),0) -> 0 | L14: =IF(D18="Mar",K2+K14,IF(D18="Apl",K2+K14,IF(D18="May",K4+K14,IF(D18="jun",K5+K14,IF(D18="Jul",K6+K14,IF(D18="Aug",K7+K14,IF(D18="Sep",K8+K14,IF(D18="Oct",K9+K14,IF(D18="Nov",K10+K14,IF(D18="Dec",K11+K14,IF(D18="Jan",K12+K14,IF(D18="Feb",K13+K14)))))))))))) -> 64250 | N14: 43100-1100-46400-1250-53900-1450-62600-1650-72500-1900-83900
A15: 14. Rate of Increment. | C15: =IF(C11<18600,O3,IF(C11<20400,P3,IF(C11<22400,Q3,IF(C11<24600,R3,IF(C11<27000,S3,IF(C11<29600,T3,IF(C11<32600,U3,IF(C11<36000,V3,IF(C11<39800,W3,IF(C11<46400,X3,IF(C11<53900,Y3,IF(C11<62600,Z3,IF(C11<72500,AA3,IF(C11<83900,AB3,IF(C11<97100,AC3,IF(C11<112100,AD3,IF(C11<128900,AE3,IF(C11<150600,AF3,)))))))))))))))))) -> 1650 | E15: Jun | F15: 2,000 | G15: 2,000 | H15: 1,272 | I15: 0 | J15: C | K15: =IF(C14="Feb",C11-C15,C11) -> 62600 | L15: =IF(C17="Yes",L16,IF(C17="No",0)) -> 0 | N15: 45300-1100-46400-1250-53900-1450-62600-1650-72500-1900-83900-2200-88300
A16: 15. If there is Stagnation Increment select rate of increment | C16: 2700 | E16: Jul | F16: 2,000 | G16: 2,000 | H16: 1,272 | I16: 0 | J16: C | K16: =IF(C14="Mar",C11-C15,C11) -> 62600 | L16: =IF(D18="Mar",M2,IF(D18="Apl",M3,IF(D18="May",M4,IF(D18="jun",M5,IF(D18="Jul",M6,IF(D18="Aug",M7,IF(D18="Sep",M8,IF(D18="Oct",M9,IF(D18="Nov",M10,IF(D18="Dec",M11,IF(D18="Jan",M12,IF(D18="Feb",M13)))))))))))) -> 1650 | N16: 48900-1250-53900-1450-62600-1650-72500-1900-83900-2200-92700
A17: 16. Is there 10/15/20 years Increment./ Add Increment? | C17: No | E17: Aug | F17: 2,000 | G17: 2,000 | H17: 1,272 | I17: 0 | J17: C | K17: C A | L17: =IF(C10=N2,"17000",IF(C10=N3,"18600",IF(C10=N4,"19950",IF(C10=N5,"21400",IF(C10=N6,"23500",IF(C10=N7,"25800",IF(C10=N8,"27650",IF(C10=N9,"30350",IF(C10=N10,"33450",IF(C10=N11,"36000",IF(C10=N12,"37900",IF(C10=N13,"40900",IF(C10=N14,"43100",IF(C10=N15,"45300",IF(C10=N16,"48900",IF(C10=N18,"56800",IF(C10=N19,"61150",IF(C10=N20,"67750",IF(C10=N21,"70850",IF(C10=N22,"74400",IF(C10=N23,"82000",IF(C10=N24,"90500",IF(C10=N25,"97100",IF(C10=N26,"104600")))))))))))))))))))))))) -> 43100 | N17: 52650-1250-53900-1450-62600-1650-72500-1900-83900-2200-97100
A18: 17. If yes, Effective Date and Month. | C18: 20 | D18: Feb | E18: Sep | F18: 2,000 | G18: 2,000 | H18: 1,272 | I18: 0 | J18: C | K18: =IF(C14="Mar",C11+C16,IF(C14="Apl",C11,IF(C14="May",C11,IF(C14="Jun",C11,IF(C14="Jul",C11,IF(C14="Aug",C11,IF(C14="Sep",C11,IF(C14="Oct",C11,IF(C14="Nov",C11,IF(C14="Dec",C11,IF(C14="Jan",C11,IF(C14="Feb",C11)))))))))))) -> 62600 | L18: 0 | N18: 56800-1450-62600-1650-72500-1900-83900-2200-97100-2500-99600
A19: 18. Whether you belong to Single child holder OR | C19: No | E19: Oct | F19: 2,000 | G19: 2,000 | H19: 1,272 | I19: 0 | J19: C | K19: =IF(C14="Mar",C11+C16,IF(C14="Apl",C11,IF(C14="May",C11,IF(C14="Jun",C11,IF(C14="Jul",C11,IF(C14="Aug",C11,IF(C14="Sep",C11,IF(C14="Oct",C11,IF(C14="Nov",C11,IF(C14="Dec",C11,IF(C14="Jan",C11,IF(C14="Feb",C11)))))))))))) -> 62600 | L19: 650 | N19: 61150-1450-62600-1650-72500-1900-83900-2200-97100-2500-102100
A20: Handicapped person. | E20: Nov | F20: 2,000 | G20: 2,000 | H20: 1,272 | I20: 0 | J20: C | K20: =IF(C14="Mar",C11+C16,IF(C14="Apl",C11+C16,IF(C14="May",C11+C16,IF(C14="Jun",C11,IF(C14="Jul",C11,IF(C14="Aug",C11,IF(C14="Sep",C11,IF(C14="Oct",C11,IF(C14="Nov",C11,IF(C14="Dec",C11,IF(C14="Jan",C11,IF(C14="Feb",C11)))))))))))) -> 62600 | L20: 850 | N20: 67550-1650-72500-1900-83900-2200-97100-2500-104600
A21: 19. Whether you belong to New Pension Scheme. | C21: No | E21: Dec | F21: 2,000 | G21: 2,000 | H21: 1,272 | I21: 0 | J21: C | K21: =IF(C14="Mar",C11+C16,IF(C14="Apl",C11+C16,IF(C14="May",C11+C16,IF(C14="Jun",C11+C16,IF(C14="Jul",C11,IF(C14="Aug",C11,IF(C14="Sep",C11,IF(C14="Oct",C11,IF(C14="Nov",C11,IF(C14="Dec",C11,IF(C14="Jan",C11,IF(C14="Feb",C11)))))))))))) -> 62600 | L21: 950 | N21: 70850-1650-72500-1900-83900-2200-97100-2500-107100
A22: 20. Whether you are Govt Employee or Private Employee | C22: Govt | E22: Jan | F22: 2,000 | G22: 2,000 | H22: 1,272 | I22: 0 | J22: C | K22: =IF(C14="Mar",C11+C16,IF(C14="Apl",C11+C16,IF(C14="May",C11+C16,IF(C14="Jun",C11+C16,IF(C14="Jul",C11+C16,IF(C14="Aug",C11,IF(C14="Sep",C11,IF(C14="Oct",C11,IF(C14="Nov",C11,IF(C14="Dec",C11,IF(C14="Jan",C11,IF(C14="Feb",C11)))))))))))) -> 62600 | L22: 1100 | N22: 74400-1900-83900-2200-97100-2500-109600
A23: 21. Which group you belong to (A,B,C,D) | C23: B | E23: Feb | F23: 2,000 | G23: 2,000 | H23: 1,272 | I23: 0 | J23: C | K23: =IF(C14="Mar",C11+C16,IF(C14="Apl",C11+C16,IF(C14="May",C11+C16,IF(C14="Jun",C11+C16,IF(C14="Jul",C11+C16,IF(C14="Aug",C11+C16,IF(C14="Sep",C11,IF(C14="Oct",C11,IF(C14="Nov",C11,IF(C14="Dec",C11,IF(C14="Jan",C11,IF(C14="Feb",C11)))))))))))) -> 62600 | L23: 1250 | N23: 82000-1900-83900-2200-97100-2500-112100-2800-117100
A24: 22. C.C.A. rate (if you are in A and B cadre city) | C24: 450 | K24: =IF(C14="Mar",C11+C16,IF(C14="Apl",C11+C16,IF(C14="May",C11+C16,IF(C14="Jun",C11+C16,IF(C14="Jul",C11+C16,IF(C14="Aug",C11+C16,IF(C14="Sep",C11+C16,IF(C14="Oct",C11,IF(C14="Nov",C11,IF(C14="Dec",C11,IF(C14="Jan",C11,IF(C14="Feb",C11)))))))))))) -> 62600 | L24: 1400 | N24: 90500-2200-97100-2500-112100-2800-123300
A25: 23. Have you belong to Small Family Norms (SFN) (mention your Increment rate) | C25: 0 | K25: =IF(C14="Mar",C11+C16,IF(C14="Apl",C11+C16,IF(C14="May",C11+C16,IF(C14="Jun",C11+C16,IF(C14="Jul",C11+C16,IF(C14="Aug",C11+C16,IF(C14="Sep",C11+C16,IF(C14="Oct",C11+C16,IF(C14="Nov",C11,IF(C14="Dec",C11,IF(C14="Jan",C11,IF(C14="Feb",C11)))))))))))) -> 62600 | L25: 1450 | N25: 97100-2500-112100-2800-128900-3100-141300
K26: =IF(C14="Mar",C11+C16,IF(C14="Apl",C11+C16,IF(C14="May",C11+C16,IF(C14="Jun",C11+C16,IF(C14="Jul",C11+C16,IF(C14="Aug",C11+C16,IF(C14="Sep",C11+C16,IF(C14="Oct",C11+C16,IF(C14="Nov",C11+C16,IF(C14="Dec",C11,IF(C14="Jan",C11,IF(C14="Feb",C11)))))))))))) -> 62600 | L26: 1650 | N26: 104600-2500-112100-2800-128900-3100-150600
A27: 24. Are you Handicapped person? | C27: No | K27: =IF(C14="Mar",C11+C16,IF(C14="Apl",C11+C16,IF(C14="May",C11+C16,IF(C14="Jun",C11+C16,IF(C14="Jul",C11+C16,IF(C14="Aug",C11+C16,IF(C14="Sep",C11+C16,IF(C14="Oct",C11+C16,IF(C14="Nov",C11+C16,IF(C14="Dec",C11+C16,IF(C14="Jan",C11,IF(C14="Feb",C11)))))))))))) -> 62600 | L27: 1700
A28: 25. Are you claimimng Medical Allowance. | C28: No | K28: =IF(C14="Mar",C11+C16,IF(C14="Apl",C11+C16,IF(C14="May",C11+C16,IF(C14="Jun",C11+C16,IF(C14="Jul",C11+C16,IF(C14="Aug",C11+C16,IF(C14="Sep",C11+C16,IF(C14="Oct",C11+C16,IF(C14="Nov",C11+C16,IF(C14="Dec",C11+C16,IF(C14="Jan",C11+C16,IF(C14="Feb",C11+C16)))))))))))) -> 65300 | L28: 2150
A29: 26. Do you want you claim H.R.A. deduction in income tax | C29: No | K29: =IF(C14="Mar",C11+C16,IF(C14="Apl",C11+C16,IF(C14="May",C11+C16,IF(C14="Jun",C11+C16,IF(C14="Jul",C11+C16,IF(C14="Aug",C11+C16,IF(C14="Sep",C11+C16,IF(C14="Oct",C11+C16,IF(C14="Nov",C11+C16,IF(C14="Dec",C11+C16,IF(C14="Jan",C11+C16,IF(C14="Feb",C11+C16)))))))))))) -> 65300 | L29: 2200
A30: 27. If yes, Actual your house rent per month. | C30: 8,250 | L30: 2500
A31: 29. Surrender-which month you claimed. | C31: Nil | L31: 2700
A32: 30. Employees Date of Birth | C32: 2019-10-21 | L32: 2800
A33: 31. Bank Savings A/C Number | C33: 035218478899 | L33: 2900
A34: 32. IFSC Code | C34: SBIN0001730 | L34: 3100
A35: 33. Is there any Agricultural Income. | C35: Rs. 0 | L35: 3300
A36: For more details contact : hucheshpk@gmail.com, mob : 9844025347 | L36: 3550
L37: 3750
L38: 3800
L39: 3950
L40: 4150
L41: 4350
L42: 4400
L43: 5000
L44: 5300
L45: 5400
L46: 5450
L47: 5600
L48: 5700
L49: 6000
L50: 6200
L51: 6600
L52: 6850
L53: 6900
L54: 7500
L55: 7800
L56: 7900
L57: 8100
L58: 8400
L59: 8700
L60: 9300
L61: 9400
L62: 10000
L63: 10300
L64: 10600
L65: 10900
L66: 11800
L67: 12400
L68: 15500

Sheet Form 16
A2: KARUNADU DIVYANGA NAUKARAR SANGHA ಕರುನಾಡು ದಿವ್ಯಾಂಗ ನೌಕರರ ಸಂಘ KARUNADU DIVYANGA NAUKARAR SANGHA ಕರುನಾಡು ದಿವ್ಯಾಂಗ ನೌಕರರ ಸಂಘ KARUNADU DIVYANGA NAUKARAR SANGHA ಕರುನಾಡು ದಿವ್ಯಾಂಗ ನೌಕರರ ಸಂಘ | B2: DETAILS OF SALARY & DEDUCTIONS for the Financial Year of 2019- 20 A.Y.2020-21
B3: Name : | C3: =Details!C2 -> ಶ್ರೀನಿವಾಸ ಹೆಚ್.ಟಿ. | J3: Designation : | K3: =Details!C3 -> ದೈಹಿಕ ಶಿಕ್ಷಣ ಶಿಕ್ಷಕರು(ಗ್ರೇಡ್-1) | N3: KGID No. | O3: =Details!F4 -> 1260321
B4: Permnent Address: | D4: =Details!C5 -> 2718 E BLOCK, KANAKADASANAGARA MYSORE | J4: Office Address | N4: TAN No | O4: =Details!C9 -> 0 | S4: =IF(Details!C12="Yes",300,IF(Details!C12="No",0)) -> 0 | T4: =Details!C25 -> 0
B5: Aadhar No. | D5: =Details!I4 -> 497378753229 | J5: =Details!C6 -> GJC(HS) KARIMUDDANAHALLI, HUNSUR TQ. | N5: PAN No | O5: =Details!C4 -> AXTPS4023M | S5: =S4+T4 -> 0
C6: Scale | D6: =Details!C10 -> 43100-1100-46400-1250-53900-1450-62600-1650-72500-1900-83900 | T6: 10
B7: Month YEAR | C7: SALARY | L7: DEDUCTIONS
C8: PAY | D8: Char All | E8: D A | F8: HRA | G8: MA | H8: PHA | I8: S F N + Unu All | J8: CCA | K8: TOTAL | L8: P T | M8: G P F | N8: K G I D | O8: L I C | P8: NPS | Q8: GIS /FBF | R8: I T | T8: =IF(Details!C23="A",480,IF(Details!C23="B",360,IF(Details!C23="C",240,IF(Details!C23="D",120)))) -> 360
B9: 2019-03-01 | C9: =IF(Details!C13="Regular",Details!L2,IF(Details!C13="Stagnation",Details!K18)) -> 62,600 | D9: 0 | E9: =ROUND((C9)*S9%,0) -> 2,348 | F9: =ROUND(IF(Details!J13="A",(C10)*24%,IF(Details!J13="B",(C10)*16%,IF(Details!J13="C",(C10)*8%))),0) -> 5,008 | G9: =IF(Details!C28="Yes",200,IF(Details!C28="No",0)) -> 0 | H9: =ROUND(IF(Details!C27="Yes",(C9+D9)*6%,IF(Details!C27="No",0)),0) -> 0 | I9: =S5 -> 0 | J9: =IF(Details!J12="A",Details!C24,IF(Details!J12="B",Details!C24,IF(Details!J12="C",0))) -> 0 | K9: =C9+D9+E9+F9+G9+H9+I9+J9 -> 69,956 | L9: =IF(Details!C19="Yes",0,IF(Details!C19="No",200)) -> 200 | M9: =IF(Details!C21="No",Details!F12,IF(Details!C21="Yes","0")) -> 2,000 | N9: =Details!G12 -> 2,000 | O9: =Details!H12 -> 1,272 | P9: =ROUND(IF(Details!C21="Yes",(C9+E9)*10%,IF(Details!C21="No",0)),0) -> 0 | Q9: =IF(Details!C22="Govt",T8,IF(Details!C22="Private",T6)) -> 360 | R9: =Details!I12 -> 0 | S9: 3.75
B10: 2019-04-01 | C10: =IF(Details!C13="Regular",Details!L3,IF(Details!C13="Stagnation",Details!K19)) -> 62,600 | D10: 0 | E10: =ROUND((C10)*S10%,0) -> 4,069 | F10: =ROUND(IF(Details!J13="A",(C10)*24%,IF(Details!J13="B",(C10)*16%,IF(Details!J13="C",(C10)*8%))),0) -> 5,008 | G10: =G9 -> 0 | H10: =ROUND(IF(Details!C27="Yes",(C10+D10)*6%,IF(Details!C27="No",0)),0) -> 0 | I10: =I9 -> 0 | J10: =IF(Details!J13="A",Details!C24,IF(Details!J13="B",Details!C24,IF(Details!J13="C",0))) -> 0 | K10: =C10+D10+E10+F10+G10+H10+I10+J10 -> 71,677 | L10: =L9 -> 200 | M10: =IF(Details!C21="No",Details!F13,IF(Details!C21="Yes","0")) -> 2,000 | N10: =Details!G13 -> 2,000 | O10: =Details!H13 -> 1,272 | P10: =ROUND(IF(Details!C21="Yes",(C10+E10)*10%,IF(Details!C21="No",0)),0) -> 0 | Q10: =IF(Details!C22="Govt",T8,IF(Details!C22="Private",T6)) -> 360 | R10: =Details!I13 -> 0 | S10: 6.5
B11: 2019-05-01 | C11: =IF(Details!C13="Regular",Details!L4,IF(Details!C13="Stagnation",Details!K20)) -> 62,600 | D11: 0 | E11: =ROUND((C11)*S10%,0) -> 4,069 | F11: =ROUND(IF(Details!J14="A",(C11)*24%,IF(Details!J14="B",(C11)*16%,IF(Details!J14="C",(C11)*8%))),0) -> 5,008 | G11: =G10 -> 0 | H11: =ROUND(IF(Details!C27="Yes",(C11+D11)*6%,IF(Details!C27="No",0)),0) -> 0 | I11: =I10 -> 0 | J11: =IF(Details!J14="A",Details!C24,IF(Details!J14="B",Details!C24,IF(Details!J14="C",0))) -> 0 | K11: 71,677 | L11: =L10 -> 200 | M11: =IF(Details!C21="No",Details!F14,IF(Details!C21="Yes","0")) -> 2,000 | N11: =Details!G14 -> 2,000 | O11: =Details!H14 -> 1,272 | P11: =ROUND(IF(Details!C21="Yes",(C11+E11)*10%,IF(Details!C21="No",0)),0) -> 0 | Q11: =IF(Details!C22="Govt",T8,IF(Details!C22="Private",T6)) -> 360 | R11: =Details!I14 -> 0 | S11: 11.25
B12: 2019-06-01 | C12: =IF(Details!C13="Regular",Details!L5,IF(Details!C13="Stagnation",Details!K21)) -> 62,600 | D12: 0 | E12: =ROUND((C12)*S10%,0) -> 4,069 | F12: =ROUND(IF(Details!J15="A",(C12)*24%,IF(Details!J15="B",(C12)*16%,IF(Details!J15="C",(C12)*8%))),0) -> 5,008 | G12: 0 | H12: =ROUND(IF(Details!C27="Yes",(C12+D12)*6%,IF(Details!C27="No",0)),0) -> 0 | I12: 0 | J12: =IF(Details!J14="A",Details!C24,IF(Details!J15="B",Details!C24,IF(Details!J15="C",0))) -> 0 | K12: 71,677 | L12: 200 | M12: =IF(Details!C21="No",Details!F15,IF(Details!C21="Yes","0")) -> 2,000 | N12: =Details!G15 -> 2,000 | O12: =Details!H15 -> 1,272 | P12: =ROUND(IF(Details!C21="Yes",(C12+E12)*10%,IF(Details!C21="No",0)),0) -> 0 | Q12: =IF(Details!C22="Govt",T8,IF(Details!C22="Private",T6)) -> 360 | R12: =Details!I15 -> 0 | S12: 2.75
B13: 2019-07-01 | C13: =IF(Details!C13="Regular",Details!L6,IF(Details!C13="Stagnation",Details!K22)) -> 62,600 | D13: 0 | E13: =ROUND((C13)*S10%,0) -> 4,069 | F13: =ROUND(IF(Details!J16="A",(C13)*24%,IF(Details!J16="B",(C13)*16%,IF(Details!J16="C",(C13)*8%))),0) -> 5,008 | G13: 0 | H13: =ROUND(IF(Details!C27="Yes",(C13+D13)*6%,IF(Details!C27="No",0)),0) -> 0 | I13: 0 | J13: =IF(Details!J16="A",Details!C24,IF(Details!J16="B",Details!C24,IF(Details!J16="C",0))) -> 0 | K13: 71,677 | L13: 200 | M13: =IF(Details!C21="No",Details!F16,IF(Details!C21="Yes","0")) -> 2,000 | N13: =Details!G16 -> 2,000 | O13: =Details!H16 -> 1,272 | P13: =ROUND(IF(Details!C21="Yes",(C13+E13)*10%,IF(Details!C21="No",0)),0) -> 0 | Q13: =IF(Details!C22="Govt",T8,IF(Details!C22="Private",T6)) -> 360 | R13: =Details!I16 -> 0 | S13: 4.75
B14: 2019-08-01 | C14: =IF(Details!C13="Regular",Details!L7,IF(Details!C13="Stagnation",Details!K23)) -> 62,600 | D14: 0 | E14: =ROUND((C14)*S10%,0) -> 4,069 | F14: =ROUND(IF(Details!J17="A",(C14)*24%,IF(Details!J17="B",(C14)*16%,IF(Details!J17="C",(C14)*8%))),0) -> 5,008 | G14: 0 | H14: =ROUND(IF(Details!C27="Yes",(C14+D14)*6%,IF(Details!C27="No",0)),0) -> 0 | I14: 0 | J14: =IF(Details!J17="A",Details!C24,IF(Details!J17="B",Details!C24,IF(Details!J17="C",0))) -> 0 | K14: 71,677 | L14: 200 | M14: =IF(Details!C21="No",Details!F17,IF(Details!C21="Yes","0")) -> 2,000 | N14: =Details!G17 -> 2,000 | O14: =Details!H17 -> 1,272 | P14: =ROUND(IF(Details!C21="Yes",(C14+E14)*10%,IF(Details!C21="No",0)),0) -> 0 | Q14: =IF(Details!C22="Govt",T8,IF(Details!C22="Private",T6)) -> 360 | R14: =Details!I17 -> 0
B15: 2019-09-01 | C15: =IF(Details!C13="Regular",Details!L8,IF(Details!C13="Stagnation",Details!K24)) -> 62,600 | D15: 0 | E15: =ROUND((C15)*S10%,0) -> 4,069 | F15: =ROUND(IF(Details!J18="A",(C15)*24%,IF(Details!J18="B",(C15)*16%,IF(Details!J18="C",(C15)*8%))),0) -> 5,008 | G15: 0 | H15: =ROUND(IF(Details!C27="Yes",(C15+D15)*6%,IF(Details!C27="No",0)),0) -> 0 | I15: 0 | J15: =IF(Details!J18="A",Details!C24,IF(Details!J18="B",Details!C24,IF(Details!J18="C",0))) -> 0 | K15: 71,677 | L15: 200 | M15: =IF(Details!C21="No",Details!F18,IF(Details!C21="Yes","0")) -> 2,000 | N15: =Details!G18 -> 2,000 | O15: =Details!H18 -> 1,272 | P15: =ROUND(IF(Details!C21="Yes",(C15+E15)*10%,IF(Details!C21="No",0)),0) -> 0 | Q15: =IF(Details!C22="Govt",T8,IF(Details!C22="Private",T6)) -> 360 | R15: =Details!I18 -> 0
B16: 2019-10-01 | C16: =IF(Details!C13="Regular",Details!L9,IF(Details!C13="Stagnation",Details!K25)) -> 62,600 | D16: 0 | E16: =ROUND((C16)*S11%,0) -> 7,043 | F16: =ROUND(IF(Details!J19="A",(C16)*24%,IF(Details!J19="B",(C16)*16%,IF(Details!J19="C",(C16)*8%))),0) -> 5,008 | G16: 0 | H16: =ROUND(IF(Details!C27="Yes",(C16+D16)*6%,IF(Details!C27="No",0)),0) -> 0 | I16: 0 | J16: =IF(Details!J19="A",Details!C24,IF(Details!J19="B",Details!C24,IF(Details!J19="C",0))) -> 0 | K16: 74,651 | L16: 200 | M16: =IF(Details!C21="No",Details!F19,IF(Details!C21="Yes","0")) -> 2,000 | N16: =Details!G19 -> 2,000 | O16: =Details!H19 -> 1,272 | P16: =ROUND(IF(Details!C21="Yes",(C16+E16)*10%,IF(Details!C21="No",0)),0) -> 0 | Q16: =IF(Details!C22="Govt",T8,IF(Details!C22="Private",T6)) -> 360 | R16: =Details!I19 -> 0
B17: 2019-11-01 | C17: =IF(Details!C13="Regular",Details!L10,IF(Details!C13="Stagnation",Details!K26)) -> 62,600 | D17: 0 | E17: =ROUND((C17)*S11%,0) -> 7,043 | F17: =ROUND(IF(Details!J20="A",(C17)*24%,IF(Details!J20="B",(C17)*16%,IF(Details!J20="C",(C17)*8%))),0) -> 5,008 | G17: 0 | H17: =ROUND(IF(Details!C27="Yes",(C17+D17)*6%,IF(Details!C27="No",0)),0) -> 0 | I17: 0 | J17: =IF(Details!J20="A",Details!C24,IF(Details!J20="B",Details!C24,IF(Details!J20="C",0))) -> 0 | K17: 74,651 | L17: 200 | M17: =IF(Details!C21="No",Details!F20,IF(Details!C21="Yes","0")) -> 2,000 | N17: =Details!G20 -> 2,000 | O17: =Details!H20 -> 1,272 | P17: =ROUND(IF(Details!C21="Yes",(C17+E17)*10%,IF(Details!C21="No",0)),0) -> 0 | Q17: =IF(Details!C22="Govt",T8,IF(Details!C22="Private",T6)) -> 360 | R17: =Details!I20 -> 0 | S17: Jan | T17: =Details!K1 -> 62600
B18: 2019-12-01 | C18: =IF(Details!C13="Regular",Details!L11,IF(Details!C13="Stagnation",Details!K27)) -> 62,600 | D18: 0 | E18: =ROUND((C18)*S11%,0) -> 7,043 | F18: =ROUND(IF(Details!J21="A",(C18)*24%,IF(Details!J21="B",(C18)*16%,IF(Details!J21="C",(C18)*8%))),0) -> 5,008 | G18: 0 | H18: =ROUND(IF(Details!C27="Yes",(C18+D18)*6%,IF(Details!C27="No",0)),0) -> 0 | I18: 0 | J18: =IF(Details!J21="A",Details!C24,IF(Details!J21="B",Details!C24,IF(Details!J21="C",0))) -> 0 | K18: 74,651 | L18: 200 | M18: =IF(Details!C21="No",Details!F21,IF(Details!C21="Yes","0")) -> 2,000 | N18: =Details!G21 -> 2,000 | O18: =Details!H21 -> 1,272 | P18: =ROUND(IF(Details!C21="Yes",(C18+E18)*10%,IF(Details!C21="No",0)),0) -> 0 | Q18: =IF(Details!C22="Govt",T8,IF(Details!C22="Private",T6)) -> 360 | R18: =Details!I21 -> 0 | S18: Feb | T18: =Details!L1 -> 0
B19: 2020-01-01 | C19: =IF(Details!C13="Regular",Details!L12,IF(Details!C13="Stagnation",Details!K28)) -> 64,250 | D19: 0 | E19: =ROUND((C19)*S11%,0) -> 7,228 | F19: =ROUND(IF(Details!J22="A",(C19)*24%,IF(Details!J22="B",(C19)*16%,IF(Details!J22="C",(C19)*8%))),0) -> 5,140 | G19: =G18 -> 0 | H19: =ROUND(IF(Details!C27="Yes",(C19+D19)*6%,IF(Details!C27="No",0)),0) -> 0 | I19: 0 | J19: =IF(Details!J22="A",Details!C24,IF(Details!J22="B",Details!C24,IF(Details!J22="C",0))) -> 0 | K19: 76,618 | L19: 200 | M19: =IF(Details!C21="No",Details!F22,IF(Details!C21="Yes","0")) -> 2,000 | N19: =Details!G22 -> 2,000 | O19: =Details!H22 -> 1,272 | P19: =ROUND(IF(Details!C21="Yes",(C19+E19)*10%,IF(Details!C21="No",0)),0) -> 0 | Q19: =IF(Details!C22="Govt",T8,IF(Details!C22="Private",T6)) -> 360 | R19: =Details!I22 -> 0
B20: 2020-02-01 | C20: =IF(Details!C13="Regular",Details!L13,IF(Details!C13="Stagnation",Details!K29)) -> 64,250 | D20: 0 | E20: =ROUND((C20)*S11%,0) -> 7,228 | F20: =ROUND(IF(Details!J23="A",(C20)*24%,IF(Details!J23="B",(C20)*16%,IF(Details!J23="C",(C20)*8%))),0) -> 5,140 | G20: 0 | H20: =ROUND(IF(Details!C27="Yes",(C20+D20)*6%,IF(Details!C27="No",0)),0) -> 0 | I20: 0 | J20: =IF(Details!J23="A",Details!C24,IF(Details!J23="B",Details!C24,IF(Details!J23="C",0))) -> 0 | K20: 76,618 | L20: 200 | M20: =IF(Details!C21="No",Details!F23,IF(Details!C21="Yes","0")) -> 2,000 | N20: =Details!G23 -> 2,000 | O20: =Details!H23 -> 1,272 | P20: =ROUND(IF(Details!C21="Yes",(C20+E20)*10%,IF(Details!C21="No",0)),0) -> 0 | Q20: =Q19 -> 360 | R20: =Details!I23 -> 0 | T20: =ROUND((C9*S12%),0) -> 1722
B21: D.A.Diff Jan | C21: 0 | D21: 0 | E21: =T23 -> 5,166 | F21: =ROUND(C21*15%,0) -> 0 | G21: 0 | H21: 0 | I21: 0 | J21: 0 | K21: =SUM(C21:J21) -> 5,166 | L21: 0 | M21: 0 | N21: 0 | O21: 0 | P21: =ROUND(IF(Details!C21="Yes",(C21+E21)*10%,IF(Details!C21="No",0)),0) -> 0 | Q21: 0 | R21: 0 | T21: =ROUND((Details!K15*S12%),0) -> 1722
B22: D.A.Diff Jul | C22: 0 | D22: 0 | E22: =T27 -> 8,922 | F22: =ROUND(C22*15%,0) -> 0 | G22: 0 | H22: 0 | I22: 0 | J22: 0 | K22: 8,922 | L22: 0 | M22: 0 | N22: 0 | O22: 0 | P22: =ROUND(IF(Details!C21="Yes",(C22+E22)*10%,IF(Details!C21="No",0)),0) -> 0 | Q22: 0 | R22: 0 | T22: =ROUND((Details!K16*S12%),0) -> 1722
B23: Surrender | C23: =ROUND(IF(Details!C31="Nil",0,IF(Details!C31="Mar",C9/2,IF(Details!C31="Apr",C10/2,IF(Details!C31="May",C11/2,IF(Details!C31="Jun",C12/2,IF(Details!C31="Jul",C13/2,IF(Details!C31="Aug",C14/2,IF(Details!C31="Sep",C15/2,IF(Details!C31="Oct",C16/2,IF(Details!C31="Nov",C17/2,IF(Details!C31="Dec",C18/2,IF(Details!C31="Jan",C19/2,IF(Details!C31="Feb",C20/2))))))))))))),0) -> 0 | D23: =ROUND(IF(Details!C31="Nil",0,IF(Details!C31="Mar",D9/2,IF(Details!C31="Apr",D10/2,IF(Details!C31="May",D11/2,IF(Details!C31="Jun",D12/2,IF(Details!C31="Jul",D13/2,IF(Details!C31="Aug",D14/2,IF(Details!C31="Sep",D15/2,IF(Details!C31="Oct",D16/2,IF(Details!C31="Nov",D17/2,IF(Details!C31="Dec",D18/2,IF(Details!C31="Jan",D19/2,IF(Details!C31="Feb",D20/2))))))))))))),0) -> 0 | E23: =ROUND(IF(Details!C31="Nil",0,IF(Details!C31="Mar",E9/2,IF(Details!C31="Apr",E10/2,IF(Details!C31="May",E11/2,IF(Details!C31="Jun",E12/2,IF(Details!C31="Jul",E13/2,IF(Details!C31="Aug",E14/2,IF(Details!C31="Sep",E15/2,IF(Details!C31="Oct",E16/2,IF(Details!C31="Nov",E17/2,IF(Details!C31="Dec",E18/2,IF(Details!C31="Jan",E19/2,IF(Details!C31="Feb",E20/2))))))))))))),0) -> 0 | F23: =ROUND(IF(Details!C31="Nil",0,IF(Details!C31="Mar",F9/2,IF(Details!C31="Apr",F10/2,IF(Details!C31="May",F11/2,IF(Details!C31="Jun",F12/2,IF(Details!C31="Jul",F13/2,IF(Details!C31="Aug",F14/2,IF(Details!C31="Sep",F15/2,IF(Details!C31="Oct",F16/2,IF(Details!C31="Nov",F17/2,IF(Details!C31="Dec",F18/2,IF(Details!C31="Jan",F19/2,IF(Details!C31="Feb",F20/2))))))))))))),0) -> 0 | G23: 0 | H23: 0 | I23: 0 | J23: =IF(C23>1,J20/2,IF(C23<1,"0")) -> 0 | K23: 0 | L23: 0 | M23: 0 | N23: 0 | O23: 0 | P23: 0 | Q23: 0 | R23: 0 | T23: =SUM(T20:T22) -> 5166
B24: Surender DA | C24: 0 | D24: 0 | E24: =IF(Details!C31="Nil",0,IF(Details!C31="Mar",C23*S12%,IF(Details!C31="Apr",0,IF(Details!C31="May",0,IF(Details!C31="Jun",0,IF(Details!C31="Jul",C23*S13%,IF(Details!C31="Aug",C23*S13%,IF(Details!C31="Sep",C23*S13%,IF(Details!C31="Oct",0,IF(Details!C31="Nov",0,IF(Details!C31="Dec",0,IF(Details!C31="Jan",0,IF(Details!C31="Feb",0))))))))))))) -> 0 | F24: 0 | G24: 0 | H24: 0 | I24: 0 | J24: 0 | K24: 0 | L24: 0 | M24: 0 | N24: 0 | O24: 0 | P24: 0 | Q24: 0 | R24: 0 | T24: =ROUND((C13*S13%),0) -> 2974
B25: Arrears | C25: 0 | D25: 0 | E25: 0 | F25: 0 | G25: 0 | H25: 0 | I25: 0 | J25: 0 | K25: 0 | L25: 0 | M25: 0 | N25: 0 | O25: 0 | P25: 0 | Q25: 0 | R25: 0 | T25: =ROUND((C14*S13%),0) -> 2974
B26: Others | C26: 0 | D26: 0 | E26: 0 | F26: 0 | G26: 0 | H26: 0 | I26: 0 | J26: 0 | K26: 0 | L26: 0 | M26: 0 | N26: 0 | O26: 0 | P26: 0 | Q26: 0 | R26: 0 | T26: =ROUND((C15*S13%),0) -> 2974
C27: =C9+C10+C11+C12+C13+C14+C15+C16+C17+C18+C19+C20+C21+C22+C23+C24+C25+C26 -> 754,500 | D27: 0 | E27: =E9+E10+E11+E12+E13+E14+E15+E16+E17+E18+E19+E20+E21+E22+E23+E24+E25+E26 -> 76,435 | F27: =F9+F10+F11+F12+F13+F14+F15+F16+F17+F18+F19+F20+F21+F22+F23+F24+F25+F26 -> 60,360 | G27: 0 | H27: 0 | I27: 0 | J27: 0 | K27: 891,295 | L27: 2,400 | M27: 24,000 | N27: 24,000 | O27: 15,264 | P27: 0 | Q27: 4,320 | R27: 0 | T27: =SUM(T24:T26) -> 8922
B28: 1. Gross Total salary. | R28: =K27 -> 891,295
B29: 2. Agricultural Income | R29: =Details!C35 -> 0 | S29: रु 9
B30: 3. Other Income | R30: 0
B31: 4. Standard Deduction U/C 16.(40,000/-) | R31: 50,000
B32: 5. Total Income | R32: =R28+R29+R30-R31 -> 841,295 | S32: =ROUND(IF(S29>=1000000,112500+(S29-1000000)*30%,IF(S29>=500000,12500+(S29-500000)*20%,IF(S29>=250000,(S29-250000)*5%,IF(S29<250000,0)))),0) -> रु 0
B33: 6. Less : HRA U/S 10 (13A) | E33: Actual HRA received | H33: =F9+F10+F11+F12+F13+F14+F15+F16+F17+F18+F19+F20 -> 60,360 | I33: Rent paid in excess of 10% of salary | M33: =T37 -> 99,000 | N33: 40% of Basic Pay | P33: =ROUND((C9+C10+C11+C12+C13+C14+C15+C16+C17+C18+C19+C20)*40%,0) -> 301,800 | Q33: Eligible HRA | R33: =IF(Details!C29="Yes",S33,IF(Details!C29="No",0)) -> 0 | S33: =IF(H33<M33,H33,IF(M33<P33,M33,IF(P325<H33,P33))) -> 60360
B34: 7. DEDUCTION P.T. | Q34: =L27 -> रु 2,400 | R34: =R32-R33-Q34 -> 838,895 | T34: =H33 -> 60,360
B35: 8. House Property Interest payable on barrowed capital U/S 24 | Q35: 0 | R35: =IF(Q35>=200000,"200000",IF(Q35<200000,Q35)) -> 0 | T35: =Details!C30*12 -> 99000
B36: 8. Income chargable under the head "Salaries" | R36: =R34-R35 -> 838,895 | T36: =IF(T34-T35<1,0,IF(T34-T35>1,T34-T35)) -> 0
B37: 9. Saving Bank Interest. / NSC Accrued Interest. / Infr Structure Bond Interest. | T37: =IF(T35-T36<1,0,IF(T35-T36>1,T35-T36)) -> 99,000
C38: 0 | E38: 0 | G38: 0 | K38: Total | L38: =C38+E38+G38 -> Rs. 0 | R38: =R36+L38 -> 838,895
B39: 10. Deduction U/S 80C K.G.I.D. | E39: =N27 -> 24,000 | F39: L.I.C | G39: =O27 -> 15,264 | H39: G.P.F. | I39: =M27 -> 24,000 | J39: G.I.S./ F.B.F | K39: =Q27 -> 4,320 | L39: Tution Fee | O39: Private Insurance
D40: P.L.I | E40: 0 | F40: Sukanya Samruddi Yojane | J40: Housing Loan Principle Amt | O40: Othres
M41: Amount | P41: Eligible Amt
C42: 80C- L.I.C.,G.P.F.,P.L.I.,G.I.S.,Debenturs,mutual funds other savings. | M42: =E39+G39+I39+K39+N39+Q39+E40+I40+N40+Q40 -> 67,584 | P42: =IF(M42>=150000,"150000",IF(M42>1,M42,IF(M42<1,"0"))) -> 67,584 | R42: =P43 -> 67,584
C43: 80CCC Payment in respect Pension Fund | M43: 0 | P43: =IF(P42+M43+M44+M45>=200000,"200000",IF(P42+M43+M44++M45<=200000,P42+M43+M44+M45)) -> 67,584 | T43: =Details!C30*12 -> 99000
C44: 80CCD(1) - Contribution to pension scheme of Central Government | M44: 0 | S44: =IF(Details!C27="Yes",38400,IF(Details!C27="No",0)) -> 0
C45: 80CCD(1B) - Contribution to pension scheme of Central Government by employee | M45: =IF(Details!C21="Yes",P27,IF(Details!C21="No",0)) -> 0 | T45: =ROUND((C9+C10+C11+C12+C13+C14+C15+C16+C17+C18+C19+C20+E9+E10+E11+E12+E13+E14+E15+E16+E17+E18+E19+E20)*10%,0) -> 81685
C46: 80CCD(2) - Contribution to pension scheme of Central Government by employer | M46: 0 | P46: =IF(M46>=75000,"75000",IF(M46<75000,M46,IF(M46=0,"0"))) -> 0 | R46: =P46 -> 0
C47: 80CCG - Investment made under an equity savings scheme | M47: 0 | P47: =IF(M47>=25000,"25000",IF(M47<25000,M47,IF(M47=0,"0"))) -> 0 | R47: 0
C48: 80D -Health insurance Premium | G48: Self and family including senior citizen parents | M48: 0 | P48: =IF(M48>=S48,S48,IF(M48<S48,M48)) -> 0 | R48: 0 | S48: =IF(G48="Select",0,IF(G48="Self and Family",25000,IF(G48="Prents",30000,IF(G48="Prents(senior citizen)",50000,IF(G48="Self and family including parents",55000,IF(G48="Self and family including senior citizen parents",60000)))))) -> 60000 | T48: =T43-T45 -> 17315
C49: 80DD - Dependent person with Disability | H49: Dependent person with disability | M49: 0 | P49: =IF(M49>=S49,S49,IF(M49<S49,M49)) -> 0 | R49: 0 | S49: =IF(H49="Select",0,IF(H49="Dependent person with disability",75000,IF(H49="Dependent person with sever disability",125000))) -> 75,000 | T49: 0
C50: 80DDB - Medical Treatment of Specified Disease | H50: Self or dependent | M50: 0 | P50: =IF(M50>=S50,S50,IF(M50<S50,M50)) -> 0 | R50: =P50 -> 0 | S50: =IF(H50="Select",0,IF(H50="Self or dependent",40000,IF(H50="Senior citizen Self or dependent",60000,IF(H50="Super senior citizen Self or dependent",80000)))) -> 40000
C51: 80E - Interest on loan taken for higher education | M51: 0 | P51: =IF(M51>=R28,R28,IF(M51<R28,M51)) -> 0 | R51: 0
C52: 80EE - Interest on loan taken for residential house property | M52: 0 | P52: =IF(M52>=50000,"50000",IF(M52>1,M52,IF(M52<1,"0"))) -> 0 | R52: 0
C53: 80G - Donations to certain funds, | M53: 0 | P53: =M53 -> 0 | R53: 0 | S53: =ROUND(K14/30,0)+M53 -> 2,389
C54: 80GG - Rent paid | M54: 0 | P54: =IF(M54>=60000,"60000",IF(M54>1,M54,IF(M54<1,"0"))) -> 0 | R54: 0
C55: 80GGA - Certain donations for scientific research or rural development | M55: 0 | P55: =IF(M55>=R28,R28,IF(M55<R28,M55)) -> 0 | R55: 0
C56: 80GGC - Donation to Political party | M56: 0 | P56: =IF(M56>=R28,R28,IF(M56<R28,M56)) -> 0 | R56: 0
C57: 80TTA - Income from Interest on saving bank Accounts | I57: Select | M57: =L38 -> 0 | P57: =S57 -> 0 | R57: 0 | S57: =IF(I57="Select",0,IF(I57="Citizen",10000,IF(I57="Senior Citizen",50000))) -> 0
C58: 80U- Person with disability | F58: Self with Disability | M58: 0 | P58: =IF(Details!C27="Yes",S58,IF(Details!C27="No",0)) -> 0 | R58: =IF(Details!C27="Yes",P58,IF(Details!C27="No",0)) -> 0 | S58: =IF(F58="Select",0,IF(F58="Self with sever Disability",125000,IF(F58="Self with Disability",75000))) -> 75000
C59: 10(14) Travelling Allowance for P.W.D. person | M59: =H27 -> 0 | P59: =IF(M59>=38400,"38400",IF(M59>1,M59,IF(M59<1,"0"))) -> 0 | R59: =P59 -> 0
M60: Total Amount | R60: =R42+R43+R44+R45+R46+R47+R48+R49+R50+R51+R52+R53+R54+R55+R56+R57+R58+R59 -> 67,584 | S60: =P60+J61 -> रु 0
B61: 11. TOTAL TAXABLE INCOME | Q61: =IF(S60<1,"0",IF(S60>=200000,"200000",IF(S60<200000,S60))) -> 0 | R61: =IF(S62<1,"0",IF(S62>0,S62)) -> 771,311 | S61: =P61+J62 -> रु 0
B62: 12. TOTAL TAX | R62: =IF(S63<1,"0",IF(S63>1,S63)) -> 66,762 | S62: =R38-R60 -> 771,311
B63: 13. Less Income Under Section 10(1) (Agricultural Income) | R63: =S32 -> 0 | S63: =ROUND(IF(R61>=1000000,112500+(R61-1000000)*30%,IF(R61>=500000,12500+(R61-500000)*20%,IF(R61>=250000,(R61-250000)*5%))),0) -> 66762
B64: 14. Tax | R64: =IF(S64<1,"0",IF(S64>=1,S64)) -> 66,762 | S64: =R62-R63 -> रु 66,762
B65: 15. Rebata U/S 87A | R65: =ROUND(IF(R61<=250000,"0",IF(R61<=500000,(R61-250000)*5%,IF(R61<=500000,"12500",IF(R61>=500000,"0")))),0) -> 0
B66: 16. Net Tax | R66: =R64-R65 -> 66,762
B67: 15. Edn Cess 4% | R67: =ROUND(R66*4%,0) -> 2,670
B68: 16. Less Income Under Section 89 (Salary Arrears/ Advance) | R68: 0
B69: 17. TOTAL TAX | R69: =R66+R67-R68 -> 69,432
B70: 18. TAX ADVANCE PAID. | R70: =R27 -> 0
B71: 19. PAYABLE TAX / REFUNDABLE AMT. | R71: =R69-R70 -> 69,432
B72: 20. TAX IN WORDS. | E72: =SpellNumber(R69) ->  | T72: 10
H76: Sign of Employee | N76: Sign of Employer
C77: Place : | D77: Dharwad | H77: =C3 -> ಶ್ರೀನಿವಾಸ ಹೆಚ್.ಟಿ. | N77: =Details!C7 -> NANJUSNDAIAH
C78: Date : | D78: =TODAY() -> 2020-01-21 | H78: =K3 -> ದೈಹಿಕ ಶಿಕ್ಷಣ ಶಿಕ್ಷಕರು(ಗ್ರೇಡ್-1) | N78: =Details!C8 -> SENIOR ASSISTANT TEACHER

Sheet Form 16 A..
A1: KARUNADU DIVYANGA NAUKARAR SANGHA - ಕರುನಾಡು ದಿವ್ಯಾಂಗ ನೌಕರರ ಸಂಘ - KARUNADU DIVYANGA NAUKARAR SANGHA - ಕರುನಾಡು ದಿವ್ಯಾಂಗ ನೌಕರರ ಸಂಘ - KARUNADU DIVYANGA NAUKARAR SANGHA - ಕರುನಾಡು ದಿವ್ಯಾಂಗ ನೌಕರರ ಸಂಘ | B1: FORM NO 16
B2: (See Rule 31 (1) (a))
B3: Certified under 203 of Income Tax Act 1961 for Tax deducted at Source from Income Chargable under the head "Salaries"
B4: NAME & ADDRESS OF THE EMPLOYER | E4: NAME & DESIGNATION OF THE EMPLOYEE
B5: =Details!C7 -> NANJUSNDAIAH | E5: ='Form 16'!C3 -> ಶ್ರೀನಿವಾಸ ಹೆಚ್.ಟಿ.
B6: =Details!C8 -> SENIOR ASSISTANT TEACHER | F6: ='Form 16'!K3 -> ದೈಹಿಕ ಶಿಕ್ಷಣ ಶಿಕ್ಷಕರು(ಗ್ರೇಡ್-1) | G6: KGID No. | H6: =Details!F4 -> 1260321
B7: =E7 -> GJC(HS) KARIMUDDANAHALLI, HUNSUR TQ. | E7: ='Form 16'!J5 -> GJC(HS) KARIMUDDANAHALLI, HUNSUR TQ.
B8: PAN No | D8: TAN No | E8: PAN No | F8: Aadhar No | G8: IFSC Code | H8: Saving A/C Number
D9: ='Form 16'!O4 -> 0 | E9: ='Form 16'!O5 -> AXTPS4023M | F9: ='Form 16'!D5 -> 497378753229 | G9: =Details!C34 -> SBIN0001730 | H9: =Details!C33 -> 035218478899
B10: TDS Circle where Annual Return / statement under section 206 to be filed I.T.O. - III Hubli | E10: Date of Birth of Employee | F10: Period | H10: Assessment Year
E11: =Details!C32 -> 2019-10-21 | F11: From 01/ April / 2019 | G11: To 31/ March / 2020 | H11: 2020-21
B12: Details of salary paid and any other income and Tax deducted
B13: 1 | C13: Gross Salary | H13: ='Form 16'!C27 -> 754,500 | I13: ='Form 16'!D27+'Form 16'!E27+'Form 16'!F27+'Form 16'!G27+'Form 16'!H27+'Form 16'!I27+'Form 16'!J27 -> 136,795
B14: 2 | C14: Allowance not exempt | H14: =I13-I14 -> 136,795 | I14: ='Form 16'!P59 -> 0
B15: 3 | C15: Less : Allowance to the extent exmpt under section 10 | H15: ='Form 16'!R63 -> 0
B16: 4 | C16: Balance (1-2-3) | H16: =H13-H14-H15 -> 617,705
B17: 4.a | C17: House Property Interest payable on barrowed capital U/S 24 | H17: ='Form 16'!R35 -> 0
B18: 5 | C18: Deductions : a) Tax on employment U/s 16(III)
B19: b) Entertainment allowance U/s 16(II)
B20: 6 | C20: Agregate of 4 (a+b) | H20: =H17+H18+H19 -> 0
B21: 7 | C21: Income Chargable under the head 'SALARIES' (4-6) | H21: =H16-H20 -> 617,705
B22: 8 | C22: Deduction under chapter VI A
C23: 80C- L.I.C.,G.P.F.,P.L.I.,G.I.S.,Debenturs,mutual funds other savings. | H23: ='Form 16'!R42 -> 67,584
C24: 80CCC Payment in respect Pension Fund | H24: ='Form 16'!R43 -> 0
C25: 80CCD(1) - Contribution to pension scheme of Central Government | H25: ='Form 16'!R44 -> 0
C26: 80CCD(1B) - Contribution to pension scheme of Central Government by employee | H26: ='Form 16'!R45 -> 0
C27: 80CCD(2) - Contribution to pension scheme of Central Government by employer | H27: ='Form 16'!R46 -> 0
C28: 80CCG - Investment made under an equity savings scheme | H28: ='Form 16'!R47 -> 0
C29: 80D -Health insurance Premium | H29: ='Form 16'!R48 -> 0
C30: 80DD - Dependent person with Disability | H30: ='Form 16'!R49 -> 0
C31: 80DDB - Medical Treatment of Specified Disease | H31: ='Form 16'!R50 -> 0
C32: 80E - Interest on loan taken for higher education | H32: ='Form 16'!R51 -> 0
C33: 80EE - Interest on loan taken for residential house property | H33: ='Form 16'!R52 -> 0
C34: 80G - Donations to certain funds, charitable institutions, etc | H34: ='Form 16'!R53 -> 0
C35: 80GG - Rent paid | H35: ='Form 16'!R54 -> 0
C36: 80GGA - Certain donations for scientific research or rural development | H36: ='Form 16'!R55 -> 0
C37: 80GGC - Donation to Political party | H37: ='Form 16'!R56 -> 0
C38: 80TTA - Income from Interest on saving bank Accounts | H38: ='Form 16'!R57 -> 0
C39: 80U- Person with disability | H39: ='Form 16'!R58 -> 0
C40: 10(14) Travelling Allowance for P.W.D. person | H40: ='Form 16'!R59 -> 0
B41: 9. Agregate of Tax Rebate & Relief | H41: =H23+H24+H25+H26+H27+H28+H29+H30+H31+H32+H33+H34+H35+H36+H37+H38+H39+H40 -> 67,584
B42: 10.Total Taxable Income (8-10+12) | H42: ='Form 16'!R61 -> 771,311
B43: 11. Tax On Total Income | H43: ='Form 16'!R62 -> 66,762
B44: 12. Less Income Under Section 10(1) (Agricultural Income) | H44: ='Form 16'!R63 -> 0
B45: 13. Tax | H45: ='Form 16'!R64 -> 66,762
B46: 14. Rebata U/S 87A | H46: ='Form 16'!R65 -> 0
B47: 15. Net Tax | H47: ='Form 16'!R66 -> 66,762
B48: 16. Edn Cess 4% | H48: ='Form 16'!R67 -> 2,670
B49: 17. Less Income Under Section 89 (Salary Arrears/ Advance) | H49: ='Form 16'!R68 -> 0
B50: 18. Agregate Total Tax | H50: ='Form 16'!R69 -> 69,432
B51: 19. Total Tax Paid | H51: ='Form 16'!R70 -> 0
B52: 20. Refund/ Balance Tax | H52: ='Form 16'!R71 -> 69,432
C53: DETAILS OF TAX DEDUCTION AND DEPOSITED IN TO CENTRAL GOVT.ACCOUNT
C54: Quarter | D54: Amount | E54: Date of Payment | F54: Bank Name & Branch
C55: 1 | D55: =Details!I12+Details!I13+Details!I14 -> 0
C56: 2 | D56: =Details!I15+Details!I16+Details!I17 -> 0
C57: 3 | D57: =Details!I18+Details!I19+Details!I20 -> 0
C58: 4 | D58: =Details!I21+Details!I22+Details!I23 -> 0
B59: Certified that a sum of | D59: =H50 -> रु 69,432 | E59: =SpellNumber(D59) -> 
C60: has been deducted at source and paid to the credit of the central Govt. further certified that above information is true and correct as per records.
C63: Place : | E63: Sign of the person responsible for deduction of Tax
C64: Date : | D64: =TODAY() -> 2020-01-21 | F64: =B5 -> NANJUSNDAIAH | G64: =B6 -> SENIOR ASSISTANT TEACHER
